bitfinex/quotes_SOLUSD_20240825
["timestamp","ask_amount","ask_price","bid_price","bid_amount"]
[1724578573719,6.3537,157.39,157.34,6.3555]
[1724578573933,45.0,157.38,157.34,7.94619755]
[1724578574297,45.0,157.38,157.34,6.3555]
[1724578574503,45.0,157.38,157.34,7.94619779]
[1724578575904,45.0,157.38,157.34,6.3555]
[1724578576201,51.3542,157.38,157.33,22.246]
[1724578577936,24.86435816,157.37,157.23,6.8975]
[1724578578233,6.3552,157.35,157.25,61.22462866]
[1724578578405,45.0,157.34,157.26,15.08883435]
[1724578578603,45.0,157.34,157.3,6.3571]
[1724578579314,45.0,157.34,157.29,15.8941]
[1724578579544,45.0,157.34,157.3,1.59103538]
[1724578579823,45.0,157.34,157.29,15.8941]
[1724578580027,45.0,157.34,157.3,1.59102025]
[1724578580232,45.0,157.34,157.29,15.8941]
[1724578580414,45.0,157.34,157.3,7.94823038]
[1724578580623,45.0,157.34,157.3,6.3572]
[1724578582325,61.6231,157.34,157.3,6.3572]
[1724578585028,61.6231,157.34,157.29,15.8941]
[1724578585201,61.6231,157.34,157.3,1.59106165]
[1724578586223,61.6231,157.34,157.3,7.94826165]
[1724578586614,15.8848,157.39,157.33,15.8901]
[1724578586615,22.9771,157.38,157.33,15.8901]
[1724578586816,45.0,157.37,157.33,15.8901]
[1724578587511,45.0,157.37,157.33,22.2461]
[1724578590831,16.6231,157.38,157.34,7.94628944]
[1724578591142,16.6231,157.38,157.34,7.62664517]
[1724578591518,16.6231,157.38,157.34,6.3556]
[1724578595949,16.6231,157.38,157.35,6.3551]
[1724578599452,16.6231,157.38,157.33,22.2457]
[1724578599652,16.6231,157.38,157.34,1.5906772]
[1724578599826,16.6231,157.38,157.33,22.2457]
[1724578600146,16.6231,157.38,157.34,7.9460772]
[1724578600338,16.6231,157.38,157.35,6.355]
[1724578601629,16.6231,157.38,157.34,6.3555]
[1724578601826,16.6231,157.38,157.35,1.59066065]
[1724578602062,16.6231,157.38,157.34,6.3555]
[1724578602223,16.6231,157.38,157.35,1.5906605]
[1724578602441,16.6231,157.38,157.34,6.3556]
[1724578602636,16.6231,157.38,157.35,1.59066065]
[1724578602950,16.6231,157.38,157.34,6.3555]
[1724578603152,16.6231,157.38,157.35,1.59066082]
[1724578603353,16.6231,157.38,157.34,8.64929738]
[1724578603528,16.6231,157.38,157.35,1.59065854]
[1724578603728,16.6231,157.38,157.34,8.64929738]
[1724578603950,16.6231,157.38,157.35,1.59065854]
[1724578604129,16.6231,157.38,157.36,1.59066068]
[1724578604342,16.6231,157.38,157.34,10.58092455]
[1724578604549,16.6231,157.38,157.35,1.59066082]
[1724578605148,16.6231,157.38,157.36,1.59066082]
[1724578605444,16.6231,157.38,157.34,10.58092636]
[1724578605756,16.6231,157.38,157.35,1.59066082]
[1724578605925,16.6231,157.38,157.36,1.59066082]
[1724578606125,16.6231,157.38,157.34,10.58092636]
[1724578606438,16.6231,157.38,157.35,1.59067084]
[1724578606645,16.6231,157.38,157.36,1.59067084]
[1724578606850,16.6231,157.38,157.35,6.3551]
[1724578607227,16.6231,157.38,157.36,3.18132136]
[1724578607554,16.6231,157.38,157.36,1.59066068]
[1724578611770,6.3532,157.4,157.36,1.59066068]
[1724578613271,15.3726,157.48,157.38,9.94313267]
[1724578613493,15.3726,157.48,157.4,15.8822]
[1724578613773,25.31573267,157.48,157.41,9.85329635]
[1724578613966,25.31573267,157.48,157.41,1.27042779]
[1724578614275,25.31573267,157.48,157.42,4.36302016]
[1724578614451,6.3504,157.47,157.43,2.77294006]
[1724578614652,6.3504,157.47,157.44,1.5900801]
[1724578614954,6.3504,157.47,157.45,1.5900801]
[1724578615164,45.0,157.46,157.42,6.3523]
[1724578615375,21.7226,157.48,157.43,6.3519]
[1724578615667,15.3726,157.48,157.44,1.27031668]
[1724578615973,15.3726,157.48,157.45,20.23735373]
[1724578616148,15.3726,157.48,157.45,23.81790013]
[1724578616341,15.3726,157.48,157.45,22.2281]
[1724578616545,15.3726,157.48,157.46,1.58977073]
[1724578616766,15.3726,157.48,157.45,22.2281]
[1724578617087,15.3726,157.48,157.46,1.58975922]
[1724578617278,15.3726,157.48,157.45,15.877]
[1724578617448,15.3726,157.48,157.46,1.58975922]
[1724578617651,15.3726,157.48,157.45,15.877]
[1724578617856,6.3492,157.5,157.46,1.58975067]
[1724578618156,6.3492,157.5,157.45,22.2281]
[1724578618764,61.29283267,157.49,157.45,15.877]
[1724578621092,54.94313267,157.49,157.42,22.2332]
[1724578621258,6.35,157.48,157.43,1.58985052]
[1724578621459,45.0,157.47,157.42,22.2332]
[1724578623483,54.94313267,157.47,157.38,21.9577]
[1724578623671,54.94313267,157.47,157.38,31.90083267]
[1724578623989,61.29353267,157.47,157.41,6.3524]
[1724578624187,61.29353267,157.47,157.42,6.3523]
[1724578624504,6.3517,157.44,157.4,15.8821]
[1724578624707,9.94313267,157.43,157.4,15.8821]
[1724578625560,9.94313267,157.43,157.37,15.886]
[1724578625768,45.0,157.42,157.37,15.886]
[1724578626188,9.94313267,157.41,157.37,15.886]
[1724578626390,6.3532,157.4,157.35,6.3551]
[1724578626686,16.29593267,157.41,157.35,7.6260145]
[1724578627292,16.29593267,157.41,157.35,6.3551]
[1724578627594,51.3525,157.42,157.36,1.27087357]
[1724578627787,51.3525,157.42,157.34,25.83203267]
[1724578627986,54.94313267,157.42,157.34,15.8889]
[1724578628291,6.3528,157.41,157.36,6.3547]
[1724578628494,45.0,157.4,157.36,6.3547]
[1724578633170,54.94313267,157.4,157.36,6.3547]
[1724578633497,45.0,157.4,157.36,6.3547]
[1724578633796,16.0555,157.45,157.42,6.3523]
[1724578635680,6.35,157.48,157.43,6.352]
[1724578636092,16.0555,157.49,157.4,9.94313267]
[1724578636093,16.0555,157.49,157.44,1.27029244]
[1724578636295,16.0555,157.49,157.45,6.3508]
[1724578637191,16.0555,157.49,157.44,6.3515]
[1724578637391,22.4051,157.49,157.44,6.3515]
[1724578639003,6.35,157.48,157.43,15.8792]
[1724578639181,6.3505,157.47,157.42,6.352]
[1724578639382,16.29393267,157.46,157.4,6.3531]
[1724578639617,6.3508,157.46,157.4,7.62353127]
[1724578639819,6.3508,157.46,157.41,6.3528]
[1724578641999,16.0555,157.49,157.38,9.94313267]
[1724578642301,16.0555,157.49,157.36,6.3069]
[1724578642302,16.0555,157.49,157.42,15.881]
[1724578642510,16.0555,157.49,157.43,1.27009499]
[1724578643292,16.0555,157.49,157.42,15.881]
[1724578643498,16.0555,157.49,157.45,6.351]
[1724578643812,16.0555,157.49,157.42,15.881]
[1724578643813,16.0555,157.49,157.46,6.3507]
[1724578645213,16.0555,157.49,157.44,22.2293]
[1724578645917,16.0555,157.49,157.45,7.62133959]
[1724578646208,16.0555,157.49,157.47,6.3503]
[1724578646417,16.0386,157.53,157.47,6.3503]
[1724578646791,6.3484,157.52,157.47,6.3503]
[1724578647988,16.0386,157.53,157.48,1.26989817]
[1724578648183,16.0386,157.53,157.49,6.3495]
[1724578648386,16.0386,157.53,157.49,7.61927516]
[1724578648816,6.35,157.48,157.42,22.2325]
[1724578649111,6.35,157.48,157.43,6.3518]
[1724578649317,6.35,157.48,157.43,7.62198786]
[1724578650306,16.0386,157.53,157.44,17.148197]
[1724578650501,45.0,157.52,157.44,17.148197]
[1724578651005,25.98173267,157.53,157.44,17.148197]
[1724578651210,9.94313267,157.47,157.38,6.354]
[1724578651720,6.3516,157.44,157.39,6.3536]
[1724578652599,6.3516,157.44,157.38,6.354]
[1724578652825,45.0,157.46,157.33,24.82621677]
[1724578652826,22.8576,157.42,157.33,15.8893]
[1724578653026,22.8576,157.42,157.3,6.3569]
[1724578653027,6.3545,157.37,157.3,6.3569]
[1724578653234,24.82621677,157.37,157.3,6.3569]
[1724578653451,6.3556,157.34,157.3,4.22761556]
[1724578653610,6.3552,157.36,157.3,4.22875909]
[1724578653939,31.18141677,157.36,157.29,22.2511]
[1724578654836,6.3553,157.35,157.29,22.2511]
[1724578655325,6.3548,157.37,157.3,4.22839353]
[1724578656029,6.3548,157.37,157.29,15.8935]
[1724578656407,6.3548,157.37,157.31,6.3568]
[1724578662046,6.3548,157.37,157.32,6.3563]
[1724578663320,6.3548,157.37,157.31,6.3568]
[1724578663626,6.3548,157.36,157.31,6.3568]
[1724578663840,6.3544,157.37,157.31,6.3568]
[1724578664247,6.354,157.38,157.32,6.3564]
[1724578671349,6.3555,157.35,157.29,15.8935]
[1724578671554,24.82621677,157.39,157.29,15.8935]
[1724578671858,6.3544,157.38,157.32,6.3563]
[1724578674036,6.354,157.38,157.33,6.356]
[1724578674841,6.3544,157.37,157.32,22.2469]
[1724578675362,6.3548,157.36,157.31,6.3568]
[1724578676372,6.3548,157.36,157.31,6.3568]
[1724578676543,6.3552,157.35,157.29,22.2514]
[1724578676737,6.3565,157.32,157.27,6.3584]
[1724578677132,6.357,157.31,157.26,15.8969]
[1724578677849,6.357,157.31,157.26,22.2554]
[1724578678661,6.3565,157.32,157.26,22.2554]
[1724578678864,6.3576,157.3,157.24,6.3596]
[1724578679043,6.3576,157.3,157.23,15.9002]
[1724578679232,6.3576,157.3,157.23,18.68469091]
[1724578679440,6.3569,157.31,157.25,6.3589]
[1724578680459,6.3569,157.31,157.24,9.93856183]
[1724578680460,6.3569,157.31,157.26,6.3587]
[1724578680964,6.3569,157.31,157.24,6.3593]
[1724578680965,6.3573,157.3,157.24,6.3593]
[1724578681161,76.67166183,157.29,157.23,22.2602]
[1724578682876,6.3581,157.28,157.23,22.2602]
[1724578683165,76.67156183,157.29,157.23,22.2602]
[1724578683942,6.3584,157.28,157.23,22.2602]
[1724578684138,45.0,157.27,157.23,22.2602]
[1724578685543,31.37816183,157.29,157.23,22.2602]
[1724578685544,21.4396,157.29,157.23,15.9002]
[1724578685845,21.4396,157.29,157.24,1.59151089]
[1724578686563,21.4396,157.29,157.25,6.3589]
[1724578686750,45.0,157.28,157.23,22.2599]
[1724578687454,45.0,157.28,157.24,6.3596]
[1724578688046,9.93856183,157.27,157.2,15.9032]
[1724578688359,45.0,157.28,157.2,15.9032]
[1724578688360,9.93856183,157.25,157.2,15.9032]
[1724578688569,9.93856183,157.25,157.2,22.2641]
[1724578688763,16.29746183,157.26,157.21,6.3607]
[1724578688977,45.0,157.25,157.21,6.3607]
[1724578689677,45.0,157.25,157.17,2.78698494]
[1724578689678,21.4396,157.29,157.22,15.9004]
[1724578689854,9.93856183,157.28,157.22,15.9004]
[1724578690180,45.0,157.27,157.23,6.3597]
[1724578692578,21.4396,157.29,157.24,17.17046539]
[1724578692784,15.3753,157.29,157.24,17.17046539]
[1724578693477,15.3753,157.29,157.26,6.3585]
[1724578695777,15.3753,157.29,157.26,7.94986425]
[1724578695977,15.3753,157.29,157.26,6.3585]
[1724578696361,15.3753,157.29,157.27,1.591363]
[1724578696557,15.3753,157.29,157.26,6.3585]
[1724578696768,15.3753,157.29,157.27,1.5913565]
[1724578696971,15.3753,157.29,157.26,6.3585]
[1724578697276,15.3753,157.29,157.27,1.59135628]
[1724578697491,15.3753,157.29,157.26,6.3585]
[1724578697673,15.3753,157.29,157.27,1.59137308]
[1724578697859,15.3753,157.29,157.26,6.3585]
[1724578698058,15.3753,157.29,157.27,1.59137301]
[1724578698360,15.3753,157.29,157.26,6.3585]
[1724578698767,15.3753,157.29,157.27,1.59137301]
[1724578698975,9.93856183,157.32,157.27,6.3584]
[1724578699271,45.0,157.31,157.28,1.59136146]
[1724578699467,45.0,157.31,157.27,6.3584]
[1724578699659,45.0,157.31,157.28,1.5913524]
[1724578699882,45.0,157.31,157.28,6.3578]
[1724578700087,45.0,157.32,157.28,6.3578]
[1724578701659,61.29496183,157.32,157.27,6.3584]
[1724578701957,61.29496183,157.32,157.28,1.59134333]
[1724578702174,61.29496183,157.32,157.27,6.3584]
[1724578702388,61.29496183,157.32,157.28,1.59135225]
[1724578702560,61.29496183,157.32,157.27,6.3584]
[1724578702759,61.29496183,157.32,157.28,1.5913524]
[1724578702982,61.29496183,157.32,157.27,6.3584]
[1724578703179,61.29496183,157.32,157.28,1.59135225]
[1724578703362,61.29496183,157.32,157.27,6.3584]
[1724578703576,61.29496183,157.32,157.28,1.59134333]
[1724578703904,61.29496183,157.32,157.27,6.3584]
[1724578704079,61.29496183,157.32,157.28,1.59134333]
[1724578704406,61.29496183,157.32,157.27,6.3584]
[1724578704572,61.29496183,157.32,157.28,1.5913524]
[1724578704768,61.29496183,157.32,157.27,6.3584]
[1724578705001,61.29496183,157.32,157.28,1.5913524]
[1724578705204,61.29496183,157.32,157.27,6.3584]
[1724578705498,16.29586183,157.3,157.25,9.13905168]
[1724578705680,21.4396,157.33,157.23,6.36]
[1724578705681,16.29696183,157.28,157.23,6.36]
[1724578705881,9.93856183,157.26,157.24,1.59164563]
[1724578706093,9.93856183,157.26,157.22,6.3604]
[1724578706385,9.93856183,157.26,157.23,1.59176702]
[1724578706694,9.93856183,157.26,157.24,1.59176702]
[1724578706873,9.93856183,157.26,157.22,6.3604]
[1724578707076,15.0488,157.27,157.24,6.3595]
[1724578707401,15.0488,157.27,157.25,1.59176681]
[1724578707700,15.0488,157.27,157.24,6.3595]
[1724578708003,45.0,157.29,157.26,1.59160113]
[1724578708186,45.0,157.3,157.25,6.3592]
[1724578708692,45.0,157.3,157.26,1.59151805]
[1724578708893,45.0,157.3,157.25,9.13974011]
[1724578709092,45.0,157.3,157.26,1.5915179]
[1724578709292,45.0,157.3,157.25,6.3592]
[1724578709293,45.0,157.3,157.27,1.5915179]
[1724578709495,51.3573,157.3,157.25,9.13974011]
[1724578709789,51.3573,157.3,157.26,1.5915168]
[1724578709990,51.3573,157.3,157.27,1.5915168]
[1724578710196,51.3573,157.3,157.25,9.13974011]
[1724578710400,51.3573,157.3,157.26,1.59151805]
[1724578710696,51.3573,157.3,157.27,1.59151805]
[1724578710874,51.3573,157.3,157.25,9.13974011]
[1724578711075,51.3573,157.3,157.26,1.59151805]
[1724578711291,51.3573,157.3,157.27,1.59151805]
[1724578711580,15.0488,157.31,157.21,24.87138272]
[1724578711882,15.0488,157.31,157.22,28.12227793]
[1724578712087,15.0488,157.31,157.23,2.29838049]
[1724578712505,15.0488,157.31,157.22,20.0]
[1724578712708,15.0488,157.31,157.23,2.29826796]
[1724578713585,15.0488,157.31,157.27,6.3584]
[1724578716588,45.0,157.3,157.26,6.3588]
[1724578716910,51.3572,157.3,157.25,6.3592]
[1724578717813,6.3577,157.29,157.24,6.3596]
[1724578718113,51.3581,157.28,157.23,6.36]
[1724578721424,51.3581,157.28,157.24,2.29865494]
[1724578721628,6.3576,157.3,157.17,24.87138272]
[1724578721797,15.0488,157.31,157.26,6.3588]
[1724578722003,21.4058,157.31,157.26,6.3588]
[1724578722727,19.78383407,157.61,157.14,46.61018857]
[1724578722728,16.574,157.38,157.29,24.87138272]
[1724578723023,16.574,157.38,157.3,23.56910798]
[1724578723212,16.574,157.38,157.31,2.29710779]
[1724578723397,16.574,157.38,157.32,2.29710779]
[1724578723732,16.574,157.38,157.34,6.3556]
[1724578725725,261.275,157.49,157.35,2.29687137]
[1724578725726,16.574,157.44,157.35,2.29687137]
[1724578725931,16.574,157.44,157.36,3.56756027]
[1724578726101,16.574,157.44,157.4,6.3531]
[1724578726535,16.574,157.44,157.36,26.14199768]
[1724578726711,31.22168272,157.48,157.43,6.3519]
[1724578726712,16.574,157.48,157.43,6.3519]
[1724578727028,16.574,157.48,157.33,20.0]
[1724578727029,16.574,157.48,157.45,6.3511]
[1724578727199,16.574,157.48,157.4,24.87138272]
[1724578727930,22.6421,157.53,157.42,24.87138272]
[1724578728236,22.6421,157.53,157.44,24.87138272]
[1724578728533,22.6421,157.53,157.49,6.3492]
[1724578729405,45.0,157.52,157.43,20.0]
[1724578729756,69.87138272,157.52,157.44,1.27010533]
[1724578730031,69.87138272,157.52,157.41,21.27010483]
[1724578730326,6.3488,157.51,157.45,6.351]
[1724578730511,45.0,157.5,157.45,6.351]
[1724578731026,51.3493,157.5,157.41,20.0]
[1724578731326,51.3493,157.5,157.42,1.27025876]
[1724578731830,51.3493,157.5,157.39,20.0]
[1724578732430,51.3493,157.5,157.44,6.3516]
[1724578738165,46.41799674,157.49,157.36,0.5805]
[1724578738330,45.0,157.48,157.41,6.3527]
[1724578739229,51.3503,157.48,157.41,6.3527]
[1724578739629,51.3503,157.48,157.42,6.3523]
[1724578741359,51.3503,157.48,157.43,6.3519]
[1724578741530,45.0,157.48,157.44,6.3513]
[1724578741729,15.4024,157.49,157.44,6.3513]
[1724578742833,21.752,157.49,157.44,6.3513]
[1724578743432,15.4024,157.49,157.44,6.3513]
[1724578746467,15.4024,157.49,157.45,6.3511]
[1724578747638,15.4024,157.49,157.38,1.27018771]
[1724578747639,15.4024,157.49,157.44,6.3515]
[1724578750554,21.7522,157.49,157.44,6.3515]
[1724578751242,45.0,157.48,157.36,45.5805]
[1724578751542,6.3504,157.47,157.42,6.3522]
[1724578752040,51.35,157.48,157.43,6.3519]
[1724578759376,15.4024,157.49,157.39,24.81763277]
[1724578759556,15.4024,157.49,157.45,6.3512]
[1724578762263,21.752,157.49,157.43,6.3517]
[1724578762460,15.4024,157.49,157.43,6.3517]
[1724578763472,6.3501,157.48,157.43,6.3517]
[1724578763675,15.4024,157.49,157.46,6.3504]
[1724578765184,15.4024,157.49,157.39,24.81763277]
[1724578765375,15.4024,157.49,157.4,65.0]
[1724578766576,15.4024,157.49,157.45,6.3511]
[1724578769778,30.88573277,157.53,157.43,24.81763277]
[1724578769779,21.4489,157.53,157.43,24.81763277]
[1724578769969,21.4489,157.53,157.46,1.27002265]
[1724578770398,15.3808,157.53,157.51,6.3487]
[1724578772066,15.3808,157.53,157.52,1.58920916]
[1724578774797,15.3808,157.53,157.51,6.3487]
[1724578774993,15.3808,157.53,157.52,1.58920886]
[1724578775265,15.3808,157.53,157.51,6.3487]
[1724578786108,7.1643598,157.56,157.51,6.3487]
[1724578786312,0.8175598,157.56,157.54,6.3472]
[1724578786609,0.8175598,157.56,157.53,6.3479]
[1724578786911,0.8175598,157.56,157.54,7.61685565]
[1724578787786,0.8175598,157.56,157.44,59.6637294]
[1724578787787,0.8175598,157.56,157.49,9.91593235]
[1724578789089,0.8175598,157.56,157.53,6.3479]
[1724578790215,0.8175598,157.56,157.49,9.91593235]
[1724578790799,0.8175598,157.56,157.5,1.26946265]
[1724578792212,0.8175598,157.56,157.51,9.91593235]
[1724578792391,0.8175598,157.56,157.52,1.2694133]
[1724578792595,0.8175598,157.56,157.53,16.26383235]
[1724578792899,0.8175598,157.56,157.54,1.26931136]
[1724578793098,0.8175598,157.56,157.55,6.3471]
[1724578793297,0.8175598,157.56,157.55,7.61632986]
[1724578794186,0.8175598,157.56,157.55,6.3471]
[1724578794387,0.8175598,157.56,157.55,7.61627828]
[1724578794802,13.4988,157.66,157.6,6.3448]
[1724578795003,13.4988,157.66,157.61,1.2688305]
[1724578796013,13.4988,157.66,157.61,7.6135305]
[1724578796214,13.4988,157.66,157.61,7.61343759]
[1724578796709,19.8416,157.66,157.61,6.3447]
[1724578797090,19.8416,157.66,157.6,6.3451]
[1724578797593,6.3432,157.65,157.6,6.3451]
[1724578798426,15.8519,157.71,157.52,6.3483]
[1724578798427,22.8406,157.58,157.52,6.3483]
[1724578798584,16.4943,157.58,157.51,9.91593235]
[1724578799310,16.4943,157.58,157.53,6.3479]
[1724578799685,16.4943,157.58,157.53,16.26383235]
[1724578800088,22.8403,157.58,157.53,16.26383235]
[1724578800490,16.4943,157.58,157.52,24.77011068]
[1724578801520,16.4943,157.58,157.56,6.3467]
[1724578801827,22.0096,157.62,157.56,6.3467]
[1724578801993,6.3447,157.61,157.56,6.3467]
[1724578802918,6.3452,157.6,157.55,6.3471]
[1724578803230,51.3456,157.59,157.53,6.3476]
[1724578804114,22.0113,157.58,157.52,6.348]
[1724578804929,22.0113,157.58,157.53,6.3478]
[1724578805127,6.3464,157.57,157.52,6.3483]
[1724578806219,22.0113,157.58,157.52,6.3483]
[1724578809029,15.6653,157.58,157.52,24.77011068]
[1724578809237,6.345,157.61,157.56,6.3467]
[1724578809612,15.9193,157.62,157.56,24.77011068]
[1724578809913,15.9193,157.62,157.6,6.3451]
[1724578810116,15.9193,157.62,157.57,1.26922461]
[1724578810117,22.2621,157.66,157.61,6.3446]
[1724578810513,15.9193,157.66,157.62,6.3443]
[1724578811825,22.2623,157.66,157.59,1.26885345]
[1724578812031,22.2623,157.66,157.53,8.86436395]
[1724578812032,15.9193,157.66,157.54,24.77011068]
[1724578812358,15.9193,157.66,157.55,24.21672719]
[1724578812511,40.68941068,157.66,157.55,20.0]
[1724578812716,45.0,157.65,157.55,20.0]
[1724578813451,6.3444,157.62,157.57,6.3463]
[1724578814437,6.3439,157.64,157.57,6.3463]
[1724578814740,51.3439,157.63,157.57,6.3463]
[1724578816145,6.3448,157.61,157.54,24.77011068]
[1724578816342,15.9193,157.6,157.57,6.3463]
[1724578816842,22.4495,157.6,157.53,4.21851347]
[1724578817054,22.4495,157.6,157.49,4.21851347]
[1724578817055,6.3475,157.55,157.49,4.21851347]
[1724578817234,15.9193,157.53,157.49,6.3492]
[1724578817428,6.3489,157.51,157.45,4.21851347]
[1724578817636,22.4495,157.53,157.43,6.63336134]
[1724578817637,22.4495,157.53,157.46,4.21851347]
[1724578817947,22.4495,157.53,157.44,4.21851347]
[1724578818432,22.4495,157.53,157.49,6.3495]
[1724578819445,22.4495,157.53,157.44,4.22544711]
[1724578819648,22.4495,157.53,157.44,24.22544711]
[1724578819824,22.4495,157.53,157.48,6.3499]
[1724578820024,22.4495,157.53,157.49,6.3496]
[1724578821318,22.4495,157.53,157.5,6.3492]
[1724578822353,16.3724,157.57,157.47,24.77011068]
[1724578822647,16.3724,157.57,157.48,24.22535132]
[1724578822830,16.3724,157.57,157.49,4.22535132]
[1724578823351,16.3724,157.57,157.49,28.995462]
[1724578823654,16.3724,157.57,157.54,6.3475]
[1724578826256,16.3724,157.57,157.5,20.0]
[1724578826257,16.3724,157.57,157.53,6.3479]
[1724578832842,16.3724,157.57,157.51,4.22154588]
[1724578833041,31.11731068,157.55,157.49,4.22154588]
[1724578833237,24.77011068,157.55,157.47,6.51243078]
[1724578833464,24.77011068,157.55,157.48,4.22154588]
[1724578833639,24.77011068,157.55,157.49,4.22154588]
[1724578833839,24.77011068,157.55,157.47,4.22154588]
[1724578834173,24.77011068,157.55,157.46,9.26218549]
[1724578834174,24.77011068,157.55,157.48,4.22154588]
[1724578834470,24.77011068,157.55,157.46,9.26218549]
[1724578834471,24.77011068,157.55,157.5,6.3488]
[1724578834653,51.3468,157.56,157.51,6.3487]
[1724578834963,16.3724,157.57,157.49,24.77011068]
[1724578835166,16.3724,157.57,157.54,6.3475]
[1724578835367,15.0981,157.62,157.53,24.77011068]
[1724578835550,15.0981,157.62,157.54,27.77857316]
[1724578835753,15.0981,157.62,157.6,6.3449]
[1724578836266,15.0981,157.62,157.58,6.3455]
[1724578837952,15.0981,157.62,157.59,6.3454]
[1724578838470,15.0981,157.62,157.6,6.3449]
[1724578839452,15.8528,157.71,157.6,6.3449]
[1724578839453,0.8175598,157.72,157.6,55.62772136]
[1724578839668,0.8175598,157.72,157.66,24.77011068]
[1724578839846,0.8175598,157.72,157.69,6.3414]
[1724578840149,0.8175598,157.72,157.7,6.341]
[1724578841172,0.8175598,157.72,157.71,6.3407]
[1724578845062,0.8175598,157.72,157.65,24.77011068]
[1724578845260,0.8175598,157.72,157.62,24.77011068]
[1724578845469,15.6418,157.7,157.66,6.3427]
[1724578846565,15.6418,157.7,157.65,6.3431]
[1724578846874,15.6418,157.7,157.64,6.3435]
[1724578847076,15.6418,157.7,157.56,14.93901577]
[1724578847077,15.6418,157.7,157.63,6.3439]
[1724578847282,15.6418,157.7,157.58,24.77011068]
[1724578847283,6.3424,157.67,157.58,24.77011068]
[1724578847580,6.3424,157.67,157.59,1.26879992]
[1724578848051,6.3424,157.67,157.59,2.85656677]
[1724578848459,6.3424,157.67,157.62,6.3443]
[1724578848663,15.6418,157.7,157.65,6.3431]
[1724578848982,15.6418,157.7,157.56,6.0875]
[1724578848983,15.6418,157.7,157.6,24.77011068]
[1724578849291,6.3415,157.69,157.63,6.3439]
[1724578849460,15.6418,157.7,157.65,6.3431]
[1724578849662,15.6418,157.7,157.66,6.3423]
[1724578850377,15.6418,157.7,157.69,6.3415]
[1724578854285,0.8175598,157.72,157.71,6.3407]
[1724578855085,0.8175598,157.72,157.62,1.26791885]
[1724578855390,0.8175598,157.72,157.69,6.3415]
[1724578855977,0.8175598,157.72,157.68,6.3418]
[1724578856772,0.8175598,157.72,157.66,6.3427]
[1724578857085,0.8175598,157.72,157.62,1.26848998]
[1724578857086,12.6198,157.7,157.62,1.26848998]
[1724578857402,12.6198,157.7,157.64,6.3435]
[1724578857591,45.0,157.69,157.64,6.3435]
[1724578859688,12.6198,157.7,157.65,6.3429]
[1724578862374,45.0,157.69,157.65,6.3429]
[1724578863090,45.0,157.69,157.63,6.3435]
[1724578863091,15.7864,157.68,157.63,6.3435]
[1724578863302,45.0,157.67,157.62,6.3443]
[1724578864391,45.0,157.67,157.59,1.26876449]
[1724578864392,15.7864,157.68,157.58,31.40029044]
[1724578864686,15.7864,157.68,157.59,20.0]
[1724578865195,15.7864,157.68,157.63,6.3439]
[1724578865390,6.3427,157.67,157.6,1.26866236]
[1724578865586,22.1284,157.68,157.62,6.3439]
[1724578865991,15.7864,157.68,157.63,6.3438]
[1724578866190,15.7864,157.68,157.64,6.3432]
[1724578866706,15.7864,157.68,157.63,6.3439]
[1724578867808,22.1283,157.68,157.63,6.3439]
[1724578868687,15.7864,157.68,157.6,24.77011068]
[1724578868884,15.7864,157.68,157.66,6.3427]
[1724578871010,15.7864,157.68,157.64,6.3434]
[1724578871211,21.6284,157.68,157.63,6.3439]
[1724578872108,21.6284,157.68,157.6,2.85642347]
[1724578872109,6.3423,157.67,157.62,6.3443]
[1724578872280,69.77011068,157.66,157.58,6.63017976]
[1724578872612,24.77011068,157.66,157.59,6.3452]
[1724578872913,24.77011068,157.66,157.54,8.55584671]
[1724578872914,6.3432,157.65,157.6,6.3449]
[1724578873413,6.3436,157.64,157.58,6.3456]
[1724578873599,6.3436,157.64,157.56,1.5880313]